[Event "*** Titled Tuesday Blitz"]
[Site "Chess.com"]
[Date "2021.02.02"]
[Round "7"]
[White "Man-Chuk"]
[Black "nrvisakh"]
[Result "1-0"]
[WhiteElo "2921"]
[BlackElo "2741"]
[TimeControl "180+1"]
[EndTime "11:20:39 PST"]
[Termination "Man-Chuk won by resignation"]

1. c4 {[%clk 0:03:00.9]} 1... Nf6 {[%clk 0:02:56]} 2. Nc3 {[%clk 0:03:00.5]}
2... g6 {[%clk 0:02:54.2]} 3. g3 {[%clk 0:02:59.7]} 3... Bg7 {[%clk 0:02:53.8]}
4. Bg2 {[%clk 0:03:00.3]} 4... O-O {[%clk 0:02:54.3]} 5. Nf3 {[%clk 0:03:00.6]}
5... c6 {[%clk 0:02:53.6]} 6. d4 {[%clk 0:02:39.6]} 6... d5 {[%clk 0:02:53.2]}
7. cxd5 {[%clk 0:02:40.5]} 7... cxd5 {[%clk 0:02:51.3]} 8. Ne5 {[%clk 0:02:41]}
8... Nc6 {[%clk 0:02:47.4]} 9. O-O {[%clk 0:02:36]} 9... Ng4 {[%clk 0:02:46.8]}
10. Nxc6 {[%clk 0:02:30.2]} 10... bxc6 {[%clk 0:02:46.4]} 11. h3 {[%clk
0:02:19.2]} 11... Nf6 {[%clk 0:02:34]} 12. b3 {[%clk 0:02:19.4]} 12... Re8
{[%clk 0:02:31.4]} 13. Bb2 {[%clk 0:02:16.6]} 13... h5 {[%clk 0:02:17.1]} 14.
Rc1 {[%clk 0:02:12.4]} 14... Bf5 {[%clk 0:02:16.4]} 15. Na4 {[%clk 0:02:06.7]}
15... Rc8 {[%clk 0:02:16.1]} 16. Nc5 {[%clk 0:02:02.4]} 16... Nd7 {[%clk
0:02:13.1]} 17. Qd2 {[%clk 0:01:59.3]} 17... Nxc5 {[%clk 0:02:09.4]} 18. Rxc5
{[%clk 0:01:58.5]} 18... e5 {[%clk 0:02:09.8]} 19. dxe5 {[%clk 0:01:56.1]} 19...
Bxe5 {[%clk 0:02:07.1]} 20. Bxe5 {[%clk 0:01:57]} 20... Rxe5 {[%clk 0:02:08]}
21. Rfc1 {[%clk 0:01:55]} 21... Qd7 {[%clk 0:02:00.5]} 22. h4 {[%clk 0:01:47.2]}
22... Be4 {[%clk 0:01:56.1]} 23. Qd4 {[%clk 0:01:38]} 23... Rce8 {[%clk
0:01:44]} 24. e3 {[%clk 0:01:16]} 24... g5 {[%clk 0:01:26.2]} 25. Rxc6 {[%clk
0:00:55.6]} 25... gxh4 {[%clk 0:01:01.4]} 26. Bxe4 {[%clk 0:00:55.5]} 26... Rxe4
{[%clk 0:00:59.7]} 27. Qf6 {[%clk 0:00:55.9]} 27... Rg4 {[%clk 0:00:34.3]} 28.
Rd6 {[%clk 0:00:52]} 28... Qe7 {[%clk 0:00:30.3]} 29. Qxe7 {[%clk 0:00:43.7]}
29... Rxe7 {[%clk 0:00:31.2]} 30. Rxd5 {[%clk 0:00:43.5]} 30... hxg3 {[%clk
0:00:31.2]} 31. f3 {[%clk 0:00:43.4]} 31... Rh4 {[%clk 0:00:27.5]} 32. Kg2
{[%clk 0:00:31.8]} 32... Rxe3 {[%clk 0:00:21.5]} 33. Kxg3 {[%clk 0:00:30.9]}
33... Rb4 {[%clk 0:00:17.3]} 34. Rxh5 {[%clk 0:00:27.6]} 34... Re6 {[%clk
0:00:12.7]} 35. Rg5+ {[%clk 0:00:26.3]} 35... Kf8 {[%clk 0:00:10.7]} 36. Rc8+
{[%clk 0:00:26.4]} 36... Re8 {[%clk 0:00:10.8]} 37. Rc7 {[%clk 0:00:14.2]} 37...
Re7 {[%clk 0:00:10]} 38. Rgc5 {[%clk 0:00:13.1]} 38... Rb7 {[%clk 0:00:08.5]}
39. Rxb7 {[%clk 0:00:10.3]} 39... Rxb7 {[%clk 0:00:08.4]} 40. Ra5 {[%clk
0:00:09.8]} 40... Kg7 {[%clk 0:00:07.7]} 41. Kf4 {[%clk 0:00:10.2]} 41... Kg6
{[%clk 0:00:07.8]} 42. Ra6+ {[%clk 0:00:10.1]} 42... f6 {[%clk 0:00:08]} 43. Kg4
{[%clk 0:00:08.6]} 43... Rb4+ {[%clk 0:00:06.3]} 44. f4 {[%clk 0:00:08.6]} 44...
Rb7 {[%clk 0:00:07.2]} 45. Ra5 {[%clk 0:00:08.7]} 45... Rc7 {[%clk 0:00:06.9]}
46. f5+ {[%clk 0:00:08.6]} 46... Kh6 {[%clk 0:00:06.3]} 47. Ra6 {[%clk
0:00:08.2]} 47... Kg7 {[%clk 0:00:06.7]} 48. Kf4 {[%clk 0:00:08.3]} 48... Rd7
{[%clk 0:00:06.4]} 49. a3 {[%clk 0:00:06.5]} 49... Re7 {[%clk 0:00:06.1]} 50. b4
{[%clk 0:00:06.5]} 50... Kf7 {[%clk 0:00:06.3]} 51. b5 {[%clk 0:00:06]} 51...
Kg7 {[%clk 0:00:06.4]} 52. a4 {[%clk 0:00:06.4]} 52... Rc7 {[%clk 0:00:06.3]}
53. Ke4 {[%clk 0:00:06]} 53... Re7+ {[%clk 0:00:05.3]} 54. Kd5 {[%clk
0:00:06.3]} 54... Rd7+ {[%clk 0:00:04.7]} 55. Kc6 {[%clk 0:00:06.4]} 55... Re7
{[%clk 0:00:04.7]} 56. a5 {[%clk 0:00:05.8]} 56... Kh6 {[%clk 0:00:04.7]} 57. b6
{[%clk 0:00:06.1]} 57... axb6 {[%clk 0:00:05.6]} 58. axb6 {[%clk 0:00:06.8]}
58... Kg5 {[%clk 0:00:05.8]} 59. Ra5 {[%clk 0:00:07.1]} 59... Re1 {[%clk
0:00:04.2]} 60. b7 {[%clk 0:00:06.9]} 60... Rc1+ {[%clk 0:00:04.8]} 61. Rc5
{[%clk 0:00:06.9]} 61... Rb1 {[%clk 0:00:05.7]} 62. Rb5 {[%clk 0:00:07]} 1-0

[Event "*** Titled Tuesday Blitz"]
[Site "Chess.com"]
[Date "2021.02.02"]
[Round "7"]
[White "RD4ever"]
[Black "pheonixking2000"]
[Result "0-1"]
[WhiteElo "2842"]
[BlackElo "2737"]
[TimeControl "180+1"]
[EndTime "11:20:42 PST"]
[Termination "pheonixking2000 won by resignation"]

1. d4 {[%clk 0:03:00.9]} 1... Nf6 {[%clk 0:02:59.7]} 2. c4 {[%clk 0:03:00.2]}
2... e6 {[%clk 0:02:59.6]} 3. Nf3 {[%clk 0:03:00.1]} 3... d5 {[%clk 0:02:59.5]}
4. g3 {[%clk 0:03:00.4]} 4... dxc4 {[%clk 0:02:59.5]} 5. Bg2 {[%clk 0:03:00.7]}
5... a6 {[%clk 0:03:00.1]} 6. Ne5 {[%clk 0:02:58]} 6... c5 {[%clk 0:02:59.9]} 7.
Be3 {[%clk 0:02:54.1]} 7... Nd5 {[%clk 0:02:58.8]} 8. Nc3 {[%clk 0:02:16.7]}
8... Nxe3 {[%clk 0:02:51]} 9. fxe3 {[%clk 0:02:17.6]} 9... Nd7 {[%clk
0:02:51.6]} 10. Nxc4 {[%clk 0:02:13.5]} 10... Rb8 {[%clk 0:02:51.1]} 11. a4
{[%clk 0:02:04.8]} 11... b6 {[%clk 0:02:48.1]} 12. O-O {[%clk 0:02:04]} 12...
Be7 {[%clk 0:02:47.4]} 13. d5 {[%clk 0:02:00.5]} 13... exd5 {[%clk 0:02:44.6]}
14. Qxd5 {[%clk 0:01:50.2]} 14... O-O {[%clk 0:02:42.8]} 15. Rad1 {[%clk
0:01:50.7]} 15... Qc7 {[%clk 0:02:42.7]} 16. Qd2 {[%clk 0:01:40.9]} 16... Nf6
{[%clk 0:02:39.8]} 17. Nd5 {[%clk 0:01:36.1]} 17... Nxd5 {[%clk 0:02:39.9]} 18.
Bxd5 {[%clk 0:01:37]} 18... Bh3 {[%clk 0:02:38.2]} 19. Rf3 {[%clk 0:01:15.7]}
19... b5 {[%clk 0:02:18.6]} 20. axb5 {[%clk 0:01:15.4]} 20... axb5 {[%clk
0:02:19.5]} 21. Qa5 {[%clk 0:01:15.4]} 21... Qxa5 {[%clk 0:02:06.2]} 22. Nxa5
{[%clk 0:01:16.3]} 22... Bf6 {[%clk 0:02:05.2]} 23. b3 {[%clk 0:01:12.7]} 23...
Bg4 {[%clk 0:02:05.2]} 24. Rf2 {[%clk 0:01:04.8]} 24... Rbe8 {[%clk 0:01:56.8]}
25. Rd3 {[%clk 0:00:48.6]} 25... Bh5 {[%clk 0:01:56.8]} 26. Bc6 {[%clk
0:00:38.7]} 26... Re6 {[%clk 0:01:53.2]} 27. Bxb5 {[%clk 0:00:34]} 27... Bg6
{[%clk 0:01:53]} 28. Rd7 {[%clk 0:00:33.4]} 28... Rxe3 {[%clk 0:01:51.1]} 29.
Bc4 {[%clk 0:00:33.4]} 29... Bd4 {[%clk 0:01:42.3]} 30. Kf1 {[%clk 0:00:32.6]}
30... Rc3 {[%clk 0:01:35.4]} 31. Rf4 {[%clk 0:00:32.5]} 31... Be3 {[%clk
0:01:30.5]} 32. Rf3 {[%clk 0:00:26.9]} 32... Be4 {[%clk 0:01:22.1]} 33. Rdxf7
{[%clk 0:00:21.8]} 33... Rc1+ {[%clk 0:01:16.4]} 34. Kg2 {[%clk 0:00:21.5]}
34... Rxf7 {[%clk 0:01:14.4]} 35. Bxf7+ {[%clk 0:00:21.3]} 35... Kf8 {[%clk
0:01:15]} 36. Bd5+ {[%clk 0:00:20.4]} 36... Bxf3+ {[%clk 0:01:14.7]} 37. Kxf3
{[%clk 0:00:20.3]} 37... Bg1 {[%clk 0:01:12.6]} 38. h4 {[%clk 0:00:20.3]} 38...
Rc3+ {[%clk 0:01:11.9]} 39. Kg2 {[%clk 0:00:20.6]} 39... Bd4 {[%clk 0:01:10.8]}
40. Nc6 {[%clk 0:00:19.9]} 40... Re3 {[%clk 0:01:08.2]} 41. Bc4 {[%clk
0:00:19.6]} 41... Ke8 {[%clk 0:01:04]} 42. Na7 {[%clk 0:00:19.9]} 42... Be5
{[%clk 0:01:01.7]} 43. Nc6 {[%clk 0:00:13.3]} 43... Bxg3 {[%clk 0:00:58.7]} 44.
h5 {[%clk 0:00:14.2]} 44... Bd6 {[%clk 0:00:56.7]} 45. Bd3 {[%clk 0:00:14.3]}
45... Kd7 {[%clk 0:00:52.4]} 46. Na5 {[%clk 0:00:14.1]} 46... Rg3+ {[%clk
0:00:51.3]} 47. Kf2 {[%clk 0:00:14.2]} 47... Rg5 {[%clk 0:00:49.4]} 48. Bxh7
{[%clk 0:00:12.6]} 48... Rxh5 {[%clk 0:00:49.7]} 49. Be4 {[%clk 0:00:13.3]}
49... Rh2+ {[%clk 0:00:47.4]} 50. Kf3 {[%clk 0:00:13.3]} 50... Ke6 {[%clk
0:00:47.5]} 51. Bd3 {[%clk 0:00:12]} 51... g5 {[%clk 0:00:46.2]} 52. Nc4 {[%clk
0:00:11.1]} 52... Rh3+ {[%clk 0:00:46.1]} 53. Kg4 {[%clk 0:00:11.5]} 53... Rg3+
{[%clk 0:00:46.4]} 54. Kh5 {[%clk 0:00:12]} 54... Bf4 {[%clk 0:00:47]} 55. Nb6
{[%clk 0:00:10.4]} 55... Rh3+ {[%clk 0:00:36.9]} 56. Kg4 {[%clk 0:00:10.4]}
56... Rg3+ {[%clk 0:00:36.4]} 57. Kh5 {[%clk 0:00:10.2]} 57... Rg1 {[%clk
0:00:36.2]} 58. Na4 {[%clk 0:00:10]} 58... Be3 {[%clk 0:00:30.4]} 59. Nc3 {[%clk
0:00:10.6]} 59... g4 {[%clk 0:00:29.8]} 60. Ne4 {[%clk 0:00:10.6]} 60... g3
{[%clk 0:00:28.4]} 61. Kh4 {[%clk 0:00:10.9]} 61... Bf4 {[%clk 0:00:24.5]} 62.
Kh3 {[%clk 0:00:09.2]} 62... Ke5 {[%clk 0:00:21.1]} 63. Nxc5 {[%clk 0:00:09.3]}
63... Rh1+ {[%clk 0:00:16.9]} 64. Kg2 {[%clk 0:00:09.3]} 64... Rh2+ {[%clk
0:00:17.1]} 65. Kf3 {[%clk 0:00:09.7]} 65... Rf2+ {[%clk 0:00:16.5]} 66. Kg4
{[%clk 0:00:10.2]} 66... g2 {[%clk 0:00:17.4]} 0-1

[Event "*** Titled Tuesday Blitz"]
[Site "Chess.com"]
[Date "2021.02.02"]
[Round "7"]
[White "LubovMarkelova"]
[Black "dopolian"]
[Result "1/2-1/2"]
[WhiteElo "2256"]
[BlackElo "2426"]
[TimeControl "180+1"]
[EndTime "11:20:47 PST"]
[Termination "Game drawn by repetition"]

1. Nf3 {[%clk 0:03:00.9]} 1... Nf6 {[%clk 0:02:59.6]} 2. c4 {[%clk 0:03:00.6]}
2... c5 {[%clk 0:02:55.2]} 3. Nc3 {[%clk 0:03:00.2]} 3... b6 {[%clk 0:02:54.5]}
4. g3 {[%clk 0:03:00.1]} 4... Bb7 {[%clk 0:02:50.9]} 5. Bg2 {[%clk 0:03:00.5]}
5... e6 {[%clk 0:02:48.5]} 6. O-O {[%clk 0:03:01]} 6... Be7 {[%clk 0:02:48.6]}
7. Re1 {[%clk 0:03:01.2]} 7... d5 {[%clk 0:02:47.6]} 8. cxd5 {[%clk 0:02:59.2]}
8... Nxd5 {[%clk 0:02:44.7]} 9. Nxd5 {[%clk 0:02:59.4]} 9... Qxd5 {[%clk
0:02:43.4]} 10. d4 {[%clk 0:02:58.1]} 10... cxd4 {[%clk 0:02:42.6]} 11. Qxd4
{[%clk 0:02:52.2]} 11... Qxd4 {[%clk 0:02:40.5]} 12. Nxd4 {[%clk 0:02:53.1]}
12... Bxg2 {[%clk 0:02:40.9]} 13. Kxg2 {[%clk 0:02:53.5]} 13... O-O {[%clk
0:02:40.2]} 14. Be3 {[%clk 0:02:52]} 14... Nd7 {[%clk 0:02:35.7]} 15. Rac1
{[%clk 0:02:48.1]} 15... Rfc8 {[%clk 0:02:31.4]} 16. Nb5 {[%clk 0:02:38.3]}
16... a6 {[%clk 0:02:27.4]} 17. Rcd1 {[%clk 0:02:29.5]} 17... Nc5 {[%clk
0:02:12]} 18. Nd6 {[%clk 0:02:26.3]} 18... Rc6 {[%clk 0:02:00.2]} 19. Nc4 {[%clk
0:02:16.1]} 19... b5 {[%clk 0:01:51.5]} 20. Ne5 {[%clk 0:02:14.3]} 20... Rc7
{[%clk 0:01:50.9]} 21. Bf4 {[%clk 0:01:47.1]} 21... g5 {[%clk 0:01:41.5]} 22.
Be3 {[%clk 0:01:34.9]} 22... Na4 {[%clk 0:01:32.3]} 23. Rd2 {[%clk 0:01:22.4]}
23... Bb4 {[%clk 0:01:27.8]} 24. Red1 {[%clk 0:01:15.9]} 24... Bxd2 {[%clk
0:01:26.6]} 25. Rxd2 {[%clk 0:01:16.8]} 25... f6 {[%clk 0:01:19.9]} 26. Nf3
{[%clk 0:01:06.2]} 26... Kf7 {[%clk 0:01:11.1]} 27. b3 {[%clk 0:00:56.7]} 27...
Nc5 {[%clk 0:01:05.2]} 28. Rd6 {[%clk 0:00:50.9]} 28... Ne4 {[%clk 0:00:56.2]}
29. Rb6 {[%clk 0:00:47.9]} 29... Nc3 {[%clk 0:00:54.6]} 30. Nd4 {[%clk
0:00:45.5]} 30... e5 {[%clk 0:00:45.6]} 31. Nf5 {[%clk 0:00:39.7]} 31... Nd5
{[%clk 0:00:44.4]} 32. Rd6 {[%clk 0:00:38]} 32... Nxe3+ {[%clk 0:00:44.5]} 33.
Nxe3 {[%clk 0:00:36.9]} 33... Ke7 {[%clk 0:00:11.1]} 34. Rb6 {[%clk 0:00:33.1]}
34... Rd7 {[%clk 0:00:08.7]} 35. Nf5+ {[%clk 0:00:28.7]} 35... Kf7 {[%clk
0:00:08.9]} 36. Nd6+ {[%clk 0:00:28.4]} 36... Kg7 {[%clk 0:00:07.1]} 37. e4
{[%clk 0:00:25.2]} 37... Raa7 {[%clk 0:00:04.6]} 38. Nf5+ {[%clk 0:00:21.2]}
38... Kg6 {[%clk 0:00:04.7]} 39. Kf3 {[%clk 0:00:17]} 39... h5 {[%clk
0:00:02.3]} 40. Ne3 {[%clk 0:00:16.6]} 40... Rac7 {[%clk 0:00:02.1]} 41. Nd5
{[%clk 0:00:16.6]} 41... Rxd5 {[%clk 0:00:02.3]} 42. exd5 {[%clk 0:00:16.2]}
42... Kf5 {[%clk 0:00:02.6]} 43. Rxa6 {[%clk 0:00:15.7]} 43... Rc3+ {[%clk
0:00:02.9]} 44. Kg2 {[%clk 0:00:15.7]} 44... Rd3 {[%clk 0:00:01.4]} 45. d6
{[%clk 0:00:13.5]} 45... b4 {[%clk 0:00:01.9]} 46. Rb6 {[%clk 0:00:13]} 46...
Rd2 {[%clk 0:00:02.3]} 47. Rxb4 {[%clk 0:00:11.4]} 47... Rxa2 {[%clk 0:00:02.3]}
48. d7 {[%clk 0:00:08.1]} 48... Rd2 {[%clk 0:00:02.4]} 49. Rb7 {[%clk
0:00:06.4]} 49... Ke6 {[%clk 0:00:02.4]} 50. Kf3 {[%clk 0:00:06.4]} 50... Rd3+
{[%clk 0:00:02.2]} 51. Ke4 {[%clk 0:00:06]} 51... Rd4+ {[%clk 0:00:02.7]} 52.
Ke3 {[%clk 0:00:06.2]} 52... h4 {[%clk 0:00:02.3]} 53. b4 {[%clk 0:00:05.6]}
53... hxg3 {[%clk 0:00:02.5]} 54. hxg3 {[%clk 0:00:05.3]} 54... f5 {[%clk
0:00:03]} 55. b5 {[%clk 0:00:05.2]} 55... f4+ {[%clk 0:00:03.1]} 56. gxf4 {[%clk
0:00:05.7]} 56... gxf4+ {[%clk 0:00:04]} 57. Ke2 {[%clk 0:00:05.7]} 57... e4
{[%clk 0:00:03.4]} 58. b6 {[%clk 0:00:06]} 58... Rxd7 {[%clk 0:00:03.4]} 59.
Rxd7 {[%clk 0:00:05.8]} 59... Kxd7 {[%clk 0:00:04.3]} 60. Kd2 {[%clk 0:00:04.7]}
60... Kc6 {[%clk 0:00:03.9]} 61. Kc3 {[%clk 0:00:05.1]} 61... Kxb6 {[%clk
0:00:03.2]} 62. Kd4 {[%clk 0:00:05.3]} 62... e3 {[%clk 0:00:02.6]} 63. fxe3
{[%clk 0:00:04.2]} 63... f3 {[%clk 0:00:02.7]} 64. Kd3 {[%clk 0:00:04]} 64...
Kc5 {[%clk 0:00:03]} 65. e4 {[%clk 0:00:04.3]} 65... Kd6 {[%clk 0:00:02.4]} 66.
Ke3 {[%clk 0:00:04.6]} 66... f2 {[%clk 0:00:02.9]} 67. Kxf2 {[%clk 0:00:04.9]}
67... Ke5 {[%clk 0:00:03.3]} 68. Kf3 {[%clk 0:00:05.5]} 68... Ke6 {[%clk
0:00:03]} 69. Ke3 {[%clk 0:00:06.2]} 69... Ke5 {[%clk 0:00:03.4]} 70. Kd3 {[%clk
0:00:07.1]} 70... Ke6 {[%clk 0:00:03.6]} 71. Kd4 {[%clk 0:00:08]} 71... Kd6
{[%clk 0:00:04.1]} 72. e5+ {[%clk 0:00:08.5]} 72... Ke6 {[%clk 0:00:04.7]} 73.
Ke4 {[%clk 0:00:09.4]} 73... Ke7 {[%clk 0:00:05]} 74. Kf4 {[%clk 0:00:10.3]}
74... Ke6 {[%clk 0:00:05.2]} 75. Ke4 {[%clk 0:00:11.2]} 75... Ke7 {[%clk
0:00:05.5]} 76. Kd4 {[%clk 0:00:12.1]} 76... Ke6 {[%clk 0:00:05.8]} 77. Ke4
{[%clk 0:00:12.6]} 1/2-1/2

[Event "*** Titled Tuesday Blitz"]
[Site "Chess.com"]
[Date "2021.02.02"]
[Round "7"]
[White "Witik"]
[Black "boasovietica"]
[Result "1-0"]
[WhiteElo "2765"]
[BlackElo "2506"]
[TimeControl "180+1"]
[EndTime "11:20:49 PST"]
[Termination "Witik won on time"]

1. e4 {[%clk 0:02:53.8]} 1... e5 {[%clk 0:02:59.7]} 2. Nf3 {[%clk 0:02:53.4]}
2... Nc6 {[%clk 0:02:57.5]} 3. Nc3 {[%clk 0:02:53.3]} 3... Nf6 {[%clk 0:02:57]}
4. Bb5 {[%clk 0:02:52.9]} 4... Bb4 {[%clk 0:02:47.3]} 5. O-O {[%clk 0:02:51.8]}
5... O-O {[%clk 0:02:42]} 6. d3 {[%clk 0:02:49.3]} 6... d6 {[%clk 0:02:33.8]} 7.
Ne2 {[%clk 0:02:48.8]} 7... Bg4 {[%clk 0:02:29.2]} 8. c3 {[%clk 0:02:43.4]} 8...
Ba5 {[%clk 0:02:26.2]} 9. Ng3 {[%clk 0:02:41.2]} 9... Ne7 {[%clk 0:02:20.3]} 10.
h3 {[%clk 0:02:38.7]} 10... Bd7 {[%clk 0:02:16.4]} 11. Bc4 {[%clk 0:02:33.1]}
11... Be6 {[%clk 0:02:13]} 12. Bxe6 {[%clk 0:02:28.9]} 12... fxe6 {[%clk
0:02:13.9]} 13. Qb3 {[%clk 0:02:28.8]} 13... Qc8 {[%clk 0:01:59.5]} 14. d4
{[%clk 0:02:17.1]} 14... exd4 {[%clk 0:01:51.5]} 15. Nxd4 {[%clk 0:02:16.1]}
15... d5 {[%clk 0:01:45]} 16. Bg5 {[%clk 0:01:58.1]} 16... c5 {[%clk 0:01:31.7]}
17. Nf3 {[%clk 0:01:55.9]} 17... h6 {[%clk 0:01:19.8]} 18. Bxf6 {[%clk 0:01:46]}
18... Rxf6 {[%clk 0:01:20.7]} 19. Rfe1 {[%clk 0:01:43.5]} 19... Qd7 {[%clk
0:01:02.5]} 20. Rad1 {[%clk 0:01:37.3]} 20... Rd8 {[%clk 0:00:59.6]} 21. Ne5
{[%clk 0:01:33.9]} 21... Qc7 {[%clk 0:00:58.9]} 22. Ng4 {[%clk 0:01:32.7]} 22...
Rf7 {[%clk 0:00:55.3]} 23. exd5 {[%clk 0:01:12.1]} 23... exd5 {[%clk 0:00:54.5]}
24. Re6 {[%clk 0:01:10.7]} 24... Bb6 {[%clk 0:00:51.5]} 25. c4 {[%clk
0:00:55.7]} 25... dxc4 {[%clk 0:00:37.9]} 26. Rxd8+ {[%clk 0:00:54]} 26... Qxd8
{[%clk 0:00:38.8]} 27. Qxc4 {[%clk 0:00:53.4]} 27... Qd1+ {[%clk 0:00:30.8]} 28.
Kh2 {[%clk 0:00:52.1]} 28... Qd5 {[%clk 0:00:30.4]} 29. Qe2 {[%clk 0:00:48.2]}
29... Nf5 {[%clk 0:00:21.4]} 30. Re8+ {[%clk 0:00:42.6]} 30... Kh7 {[%clk
0:00:20.7]} 31. Re5 {[%clk 0:00:35.4]} 31... Qd7 {[%clk 0:00:11.3]} 32. Qe4
{[%clk 0:00:27.6]} 32... g6 {[%clk 0:00:10.5]} 33. Re6 {[%clk 0:00:23.9]} 33...
Bc7 {[%clk 0:00:10.1]} 34. Nf6+ {[%clk 0:00:20.7]} 34... Rxf6 {[%clk 0:00:06.3]}
35. Rxf6 {[%clk 0:00:21.6]} 35... Kg7 {[%clk 0:00:05.7]} 36. Re6 {[%clk
0:00:14.8]} 36... Kf7 {[%clk 0:00:05.8]} 37. Re5 {[%clk 0:00:09.2]} 37... Bxe5
{[%clk 0:00:05.1]} 38. Qxe5 {[%clk 0:00:10.1]} 38... Qd6 {[%clk 0:00:04.4]} 39.
Qe4 {[%clk 0:00:08.9]} 39... Nxg3 {[%clk 0:00:04.1]} 40. Qxb7+ {[%clk
0:00:08.7]} 40... Kf6 {[%clk 0:00:04.3]} 41. fxg3 {[%clk 0:00:09.2]} 41... a6
{[%clk 0:00:03.1]} 42. b3 {[%clk 0:00:08.4]} 42... h5 {[%clk 0:00:03.2]} 43. h4
{[%clk 0:00:08]} 43... Kf5 {[%clk 0:00:02.7]} 44. Qf3+ {[%clk 0:00:07.7]} 44...
Ke6 {[%clk 0:00:02.3]} 45. Qe4+ {[%clk 0:00:07.9]} 45... Kd7 {[%clk 0:00:02.6]}
46. Qf4 {[%clk 0:00:07.5]} 46... Qe6 {[%clk 0:00:02.4]} 47. Qf3 {[%clk
0:00:05.5]} 47... Kc7 {[%clk 0:00:02.5]} 48. Qf4+ {[%clk 0:00:05.2]} 48... Kb6
{[%clk 0:00:02.8]} 49. Qg5 {[%clk 0:00:04.3]} 49... Kb5 {[%clk 0:00:02.4]} 50.
Qd2 {[%clk 0:00:04.2]} 50... Kb6 {[%clk 0:00:02.4]} 51. Qd3 {[%clk 0:00:04.4]}
51... Kb7 {[%clk 0:00:02.5]} 52. Qc4 {[%clk 0:00:04.4]} 52... Qxc4 {[%clk
0:00:02.2]} 53. bxc4 {[%clk 0:00:04.5]} 53... Kb6 {[%clk 0:00:02.7]} 54. g4
{[%clk 0:00:05.2]} 54... hxg4 {[%clk 0:00:02.8]} 55. Kg3 {[%clk 0:00:05.4]}
55... Ka5 {[%clk 0:00:03.6]} 56. Kxg4 {[%clk 0:00:06]} 56... Kb4 {[%clk
0:00:04.4]} 57. Kg5 {[%clk 0:00:06.9]} 57... Kxc4 {[%clk 0:00:04.7]} 58. Kxg6
{[%clk 0:00:07.8]} 58... Kd4 {[%clk 0:00:04.2]} 59. h5 {[%clk 0:00:08.7]} 59...
c4 {[%clk 0:00:04.7]} 60. h6 {[%clk 0:00:09.6]} 60... c3 {[%clk 0:00:05.3]} 61.
h7 {[%clk 0:00:10.5]} 61... c2 {[%clk 0:00:06]} 62. h8=Q+ {[%clk 0:00:11.4]}
62... Kd3 {[%clk 0:00:06.5]} 63. Qb2 {[%clk 0:00:10.1]} 63... Kd2 {[%clk
0:00:06.4]} 64. g4 {[%clk 0:00:09.9]} 64... Kd1 {[%clk 0:00:06.2]} 65. g5 {[%clk
0:00:10.3]} 65... c1=Q {[%clk 0:00:06.5]} 66. Qxc1+ {[%clk 0:00:10.7]} 66...
Kxc1 {[%clk 0:00:07.4]} 67. Kf5 {[%clk 0:00:10.6]} 67... Kb2 {[%clk 0:00:08.3]}
68. g6 {[%clk 0:00:11.5]} 68... Kxa2 {[%clk 0:00:08.8]} 69. g7 {[%clk
0:00:12.4]} 69... a5 {[%clk 0:00:09.7]} 70. g8=Q+ {[%clk 0:00:13]} 70... Ka3
{[%clk 0:00:09.1]} 71. Qc4 {[%clk 0:00:12.6]} 71... a4 {[%clk 0:00:10]} 72. Ke4
{[%clk 0:00:12.3]} 72... Kb2 {[%clk 0:00:09.6]} 73. Qxa4 {[%clk 0:00:12.5]} 1-0